bitfinex-derivatives/quotes_ETHF0:USTF0_20250411
["timestamp","ask_amount","ask_price","bid_price","bid_amount"]
[1744376560919,1.28518,1557.1,1557.0,13.17608531]
[1744376561113,6.26196,1557.2,1557.1,1.28518]
[1744376561315,6.60300902,1557.2,1557.1,3.20779326]
[1744376561515,1.28518,1557.1,1557.0,9.96822205]
[1744376561814,6.26198,1557.1,1557.0,9.96822205]
[1744376562120,6.60298421,1557.1,1557.0,11.89082531]
[1744376562311,6.60298421,1557.1,1557.0,7.18452531]
[1744376562512,6.60298421,1557.1,1557.0,0.00963205]
[1744376563115,6.60298421,1557.1,1557.0,4.50268531]
[1744376563514,6.60298161,1557.1,1557.0,4.50268531]
[1744376563715,6.60298161,1557.1,1557.0,9.03208531]
[1744376564020,6.60298161,1557.1,1557.0,7.74682531]
[1744376564222,6.60298161,1557.1,1557.0,0.00963205]
[1744376564818,6.60308907,1557.1,1557.0,1.29489205]
[1744376565017,3.89723205,1557.3,1557.0,7.74682531]
[1744376565325,1.28513,1557.2,1557.1,4.49289326]
[1744376565517,1.28513,1557.2,1557.1,7.73719326]
[1744376565712,1.28518,1557.1,1557.0,0.00963205]
[1744376565916,1.62630787,1557.1,1557.0,1.29489205]
[1744376566224,1.28518,1557.1,1557.0,9.09698531]
[1744376567524,1.62635039,1557.1,1557.0,9.09698531]
[1744376567827,1.62630179,1557.1,1557.0,9.09698531]
[1744376568120,1.62629696,1557.1,1557.0,7.81172531]
[1744376568327,1.28518,1557.1,1557.0,9.09698531]
[1744376568625,1.62624032,1557.1,1557.0,9.09698531]
[1744376568824,6.24554032,1557.1,1557.0,7.81172531]
[1744376569021,6.24554032,1557.1,1557.0,0.00963205]
[1744376569725,6.24554032,1557.1,1557.0,4.67893205]
[1744376570429,6.24573127,1557.1,1557.0,4.67893205]
[1744376571425,6.24573127,1557.1,1557.0,0.00963205]
[1744376572230,6.2457324,1557.1,1557.0,0.00963205]
[1744376572824,10.2247324,1557.1,1557.0,0.00963205]
[1744376579636,10.22571639,1557.1,1557.0,0.00963205]
[1744376582535,10.22609978,1557.1,1557.0,0.00963205]
[1744376583447,13.43389978,1557.1,1557.0,0.00963205]
[1744376583635,13.43389978,1557.1,1557.0,2.05e-06]
[1744376583636,18.43389978,1557.1,1557.0,2.05e-06]
[1744376583943,23.74289978,1557.1,1557.0,2.05e-06]
[1744376584641,23.74335487,1557.1,1557.0,2.05e-06]
[1744376586642,23.74335487,1557.1,1556.3,13.9275]
[1744376586643,1.28576,1556.4,1556.3,13.9275]
[1744376586846,1.62883487,1556.4,1556.3,9.90434]
[1744376587042,1.62883487,1556.4,1556.3,16.82629326]
[1744376587240,1.62883487,1556.4,1556.3,3.9753]
[1744376587542,1.28592,1556.2,1556.1,22.62258172]
[1744376587742,1.62899487,1556.2,1556.1,22.62258172]
[1744376587934,1.62899487,1556.2,1556.1,25.83037498]
[1744376588336,1.62899487,1556.2,1556.1,17.22897498]
[1744376588645,1.28609,1556.0,1555.9,19.73488477]
[1744376588845,4.83696487,1556.0,1555.9,19.73488477]
[1744376589049,9.83696487,1556.0,1555.9,14.55335477]
[1744376589251,9.83696487,1556.0,1555.9,13.62095154]
[1744376589252,17.86636487,1556.0,1555.9,13.62095154]
[1744376589542,1.28625,1555.8,1555.7,23.75820059]
[1744376589744,10.14612487,1555.8,1555.7,23.75820059]
[1744376589945,1.62932487,1555.8,1555.7,23.75820059]
[1744376590143,6.22992487,1555.8,1555.7,23.75820059]
[1744376590443,9.43772487,1555.8,1555.7,23.75820059]
[1744376591035,1.28634,1555.7,1555.6,4.74133205]
[1744376591235,6.03241487,1555.7,1555.6,0.00963205]
[1744376591444,6.03241487,1555.7,1555.6,3.21742531]
[1744376592545,6.03241487,1555.7,1555.6,0.00963205]
[1744376592950,11.03241487,1555.7,1555.6,2.05e-06]
[1744376593138,10.19061487,1555.7,1555.6,2.05e-06]
[1744376593333,6.02925162,1555.7,1555.6,2.05e-06]
[1744376593537,6.02896694,1555.7,1555.6,2.05e-06]
[1744376595150,5.68934,1555.7,1555.6,2.05e-06]
[1744376596140,5.68934,1555.7,1555.6,4.49421531]
[1744376596336,1.28631,1555.8,1555.7,1.28634]
[1744376596542,1.28631,1555.8,1555.7,7.60059326]
[1744376596843,1.28634,1555.7,1555.6,4.25450205]
[1744376597043,1.28634,1555.7,1555.6,7.46229531]
[1744376597240,1.28634,1555.7,1555.6,4.25450205]
[1744376597445,1.28634,1555.7,1555.6,7.46229531]
[1744376597647,5.85414,1555.7,1555.6,7.46229531]
[1744376597847,5.85414,1555.7,1555.6,11.85509531]
[1744376598850,5.85414,1555.7,1555.6,4.25450205]
[1744376599055,5.85414,1555.7,1555.6,2.05e-06]
[1744376599252,10.85414,1555.7,1555.6,2.05e-06]
[1744376599449,15.21098303,1555.7,1555.6,2.05e-06]
[1744376599745,15.21097117,1555.7,1555.6,2.05e-06]
[1744376601654,10.21097117,1555.7,1555.6,2.05e-06]
[1744376601850,6.19297117,1555.7,1555.6,2.05e-06]
[1744376602055,5.85414,1555.7,1555.6,2.05e-06]
[1744376602357,6.19298698,1555.7,1555.6,2.05e-06]
[1744376603956,6.1929669,1555.7,1555.6,2.05e-06]
[1744376605157,1.28634,1555.7,1555.6,3.20779531]
[1744376605650,8.5208,1555.8,1555.6,11.41229531]
[1744376605852,1.28613,1556.0,1555.9,1.28617]
[1744376606046,1.28607,1556.1,1556.0,1.28606]
[1744376606243,1.28607,1556.1,1556.0,13.17276]
[1744376606555,1.28607,1556.1,1556.0,15.09449326]
[1744376607053,1.28607,1556.1,1556.0,6.88449326]
[1744376607259,1.28617,1555.9,1555.8,8.2045]
[1744376607454,1.28617,1555.9,1555.8,11.41229326]
[1744376609057,4.49397,1555.9,1555.8,11.41229326]
[1744376609556,1.28617,1555.9,1555.8,11.41229326]
[1744376609954,1.28617,1555.9,1555.8,12.69854326]
[1744376610159,1.28617,1555.9,1555.8,17.69854326]
[1744376610359,1.28617,1555.9,1555.8,16.41229326]
[1744376611062,1.28617,1555.9,1555.8,11.41229326]
[1744376611361,4.83418989,1555.9,1555.8,11.41229326]
[1744376611758,4.49397,1555.9,1555.8,11.41229326]
[1744376612260,4.83465105,1555.9,1555.8,11.41229326]
[1744376613059,1.62685105,1555.9,1555.8,11.41229326]
[1744376613361,6.423,1556.1,1555.8,16.41229326]
[1744376613562,1.28615,1556.0,1555.9,5.80592]
[1744376614066,1.28615,1556.0,1555.9,14.01371326]
[1744376614362,1.28615,1556.0,1555.9,7.72759326]
[1744376614663,4.83518705,1556.0,1555.9,7.72759326]
[1744376614858,4.83525372,1556.0,1555.9,7.72759326]
[1744376618368,4.83660101,1556.0,1555.9,7.72759326]
[1744376619164,9.57580101,1556.0,1555.9,7.72759326]
[1744376620367,9.57592051,1556.0,1555.9,7.72759326]
[1744376622567,6.36812051,1556.0,1555.9,7.72759326]
[1744376622864,6.36812051,1556.0,1555.9,3.20779326]
[1744376623065,1.28617,1555.9,1555.8,3.6767]
[1744376623267,6.23564051,1555.9,1555.8,7.9748]
[1744376623462,6.23564051,1555.9,1555.8,11.18259326]
[1744376624065,6.23562406,1555.9,1555.8,11.18259326]
[1744376624466,1.62892406,1555.9,1555.8,11.18259326]
[1744376624671,1.62892406,1555.9,1555.8,12.46884326]
[1744376624871,1.62892406,1555.9,1555.8,11.18259326]
[1744376625767,1.62917244,1555.9,1555.8,11.18259326]
[1744376626765,6.05127244,1555.9,1555.8,11.18259326]
[1744376627475,6.05112563,1555.9,1555.8,11.18259326]
[1744376629273,6.05114215,1555.9,1555.8,11.18259326]
[1744376629469,9.25894215,1555.9,1555.8,3.6767]
[1744376629865,6.05114215,1555.9,1555.8,6.88449326]
[1744376630065,6.05114215,1555.9,1555.8,10.93899326]
[1744376630274,9.25894215,1555.9,1555.8,10.93899326]
[1744376630873,6.05114215,1555.9,1555.8,10.93899326]
[1744376632168,9.25894215,1555.9,1555.8,6.88449326]
[1744376632375,9.25894215,1555.9,1555.8,3.6767]
[1744376633173,9.25894215,1555.9,1555.8,6.88449326]
[1744376634174,9.25894215,1555.9,1555.8,3.6767]
[1744376634374,9.25894215,1555.9,1555.8,6.88449326]
[1744376634563,9.25894215,1555.9,1555.8,3.67669326]
[1744376634769,1.28634,1555.7,1555.6,2.05e-06]
[1744376634973,1.28675,1555.2,1555.1,3.4226]
[1744376635177,4.83742215,1555.2,1555.1,7.2861]
[1744376635371,4.83742215,1555.2,1555.1,23.91407518]
[1744376636369,9.83771794,1555.2,1555.1,13.12318192]
[1744376636570,17.43741794,1555.2,1555.1,8.89067192]
[1744376636771,21.46761794,1555.2,1555.1,6.79583192]
[1744376637271,21.98426796,1555.2,1555.1,4.30116192]
[1744376637578,21.98426796,1555.2,1555.0,20.02458123]
[1744376637579,1.28683,1555.1,1555.0,16.34427315]
[1744376637874,6.30339794,1555.1,1555.0,11.91935315]
[1744376638077,11.30339794,1555.1,1555.0,11.91935315]
[1744376638277,1.62926106,1555.1,1555.0,11.91935315]
[1744376638478,5.65946106,1555.1,1555.0,11.91935315]
[1744376639073,5.65946106,1555.1,1555.0,13.55527641]
[1744376639283,1.62926106,1555.1,1555.0,17.67987641]
[1744376639483,1.62926106,1555.1,1555.0,20.94567641]
[1744376639681,1.62926106,1555.1,1555.0,9.03595531]
[1744376640380,5.54406106,1555.1,1555.0,9.03595531]
[1744376640578,5.54406106,1555.1,1555.0,4.91135531]
[1744376641274,5.54344724,1555.1,1555.0,9.03595531]
[1744376641672,5.54344724,1555.1,1555.0,0.00963205]
[1744376642072,8.82274724,1555.1,1555.0,0.00963205]
[1744376642277,1.62864724,1555.1,1555.0,1.64555531]
[1744376642478,0.34181724,1555.1,1555.0,7.93246531]
[1744376642780,1.62864724,1555.1,1555.0,1.64555531]
[1744376643081,1.62864724,1555.1,1555.0,12.67025531]
[1744376643281,5.61654724,1555.1,1555.0,12.67025531]
[1744376643483,1.62864724,1555.1,1555.0,12.67025531]
[1744376643779,1.28683,1555.1,1555.0,13.95716531]
[1744376644083,9.51388386,1555.2,1555.0,12.67025531]
[1744376644285,8.22710386,1555.2,1555.1,6.98445326]
[1744376644671,5.01930386,1555.2,1555.1,11.98445326]
[1744376644876,7.53858785,1555.3,1555.2,1.28675]
[1744376645084,7.53858785,1555.3,1555.2,6.86787326]
[1744376645383,7.53858785,1555.3,1555.2,11.86787326]
[1744376645883,7.53858785,1555.3,1555.2,20.37667326]
[1744376647385,2.14758785,1555.3,1555.2,20.37667326]
[1744376648475,0.00963205,1555.4,1555.3,1.28667]
[1744376648677,0.00963205,1555.4,1555.3,5.42237]
[1744376648879,0.00963205,1555.4,1555.3,10.42237]
[1744376650187,1.28631,1555.8,1555.7,1.28634]
[1744376650386,1.62787858,1555.8,1555.7,1.28634]
[1744376650883,1.62787858,1555.8,1555.7,5.42204]
[1744376651888,1.6278499,1555.8,1555.7,5.42204]
[1744376652287,1.28634,1555.7,1555.6,3.4193]
[1744376652585,5.5593799,1555.7,1555.6,8.89842]
[1744376653584,5.55937911,1555.7,1555.6,8.89842]
[1744376653786,5.55937872,1555.7,1555.6,8.89842]
[1744376656888,1.62787872,1555.7,1555.6,8.89842]
[1744376658495,0.34153872,1555.7,1555.6,8.89842]
[1744376658690,1.29584205,1555.9,1555.8,1.28625]
[1744376658885,1.63730585,1555.9,1555.8,1.28625]
[1744376659193,1.63730585,1555.9,1555.8,8.64695]
[1744376661492,1.29584205,1555.9,1555.8,8.64695]
[1744376661893,1.63720641,1555.9,1555.8,8.64695]
[1744376662090,1.29584205,1555.9,1555.8,8.64695]
[1744376663993,1.29580205,1555.9,1555.8,8.64695]
[1744376664191,1.29580205,1555.9,1555.8,7.3607]
[1744376664401,1.63705525,1555.9,1555.8,7.3607]
[1744376664599,1.63705559,1555.9,1555.8,7.3607]
[1744376664898,1.28634,1555.7,1555.6,4.70568]
[1744376665095,1.28634,1555.7,1555.6,8.23908]
[1744376666400,1.28634,1555.7,1555.6,12.17598]
[1744376667101,1.28631,1555.8,1555.7,1.28629]
[1744376667305,1.28631,1555.8,1555.7,5.22319]
[1744376667600,1.28631,1555.8,1555.7,3.9369]
[1744376667901,5.70346095,1555.8,1555.7,3.9369]
[1744376671811,1.29582205,1555.9,1555.8,1.28625]
[1744376672013,1.63757809,1555.9,1555.8,1.28625]
[1744376672207,1.63757809,1555.9,1555.8,3.9913]
[1744376672402,3.21564,1555.8,1555.5,3.2078]
[1744376672608,1.28642,1555.6,1555.3,18.25631]
[1744376672807,1.28642,1555.6,1555.5,1.2865]
[1744376673012,1.62840254,1555.6,1555.5,1.2865]
[1744376673415,1.62840254,1555.6,1555.5,5.0854]
[1744376673807,1.62863928,1555.6,1555.5,5.0854]
[1744376674205,1.28658,1555.5,1555.3,4.49444]
[1744376674512,1.62879928,1555.4,1555.3,4.49444]
[1744376674917,1.62879928,1555.4,1555.3,3.2078]
[1744376675214,5.77899928,1555.4,1555.3,3.2078]
[1744376676216,5.77899928,1555.4,1555.3,7.2083]
[1744376677515,5.77899928,1555.4,1555.3,3.2078]
[1744376678916,5.77899928,1555.4,1555.3,4.49447]
[1744376679119,0.34221928,1555.4,1555.3,13.64127]
[1744376679420,1.6289745,1555.4,1555.3,1.28667]
[1744376679619,0.3423945,1555.4,1555.3,1.28667]
[1744376679812,0.3423945,1555.4,1555.3,5.14247]
[1744376680013,1.28675,1555.2,1555.1,11.0275]
[1744376680320,1.6291445,1555.2,1555.1,9.7407]
[1744376680512,1.6291445,1555.2,1555.1,11.02753]
[1744376680713,1.6291445,1555.2,1555.1,14.88333]
[1744376680910,0.3423945,1555.2,1555.1,14.88333]
[1744376681323,4.37738254,1555.2,1555.1,14.88333]
[1744376681513,5.66413254,1555.2,1555.1,14.88333]
[1744376681712,5.66413254,1555.2,1555.1,10.3887]
[1744376682315,1.28683,1555.1,1555.0,0.00963205]
[1744376682619,9.07301254,1555.1,1555.0,0.00963205]
[1744376683121,9.07273704,1555.1,1555.0,0.00963205]
[1744376683724,5.74513704,1555.1,1555.0,0.00963205]
[1744376684013,5.74513704,1555.1,1555.0,8.60424205]
[1744376684721,0.34180704,1555.1,1555.0,8.60424205]
[1744376684921,4.49436,1555.5,1555.4,1.28658]
[1744376685115,3.8267,1555.4,1555.3,1.28661]
[1744376685415,4.1681418,1555.4,1555.3,8.69081]
[1744376685924,5.4547218,1555.4,1555.3,8.69081]
[1744376687019,0.3414418,1555.4,1555.3,8.69081]
[1744376688615,4.1604,1555.5,1555.4,1.28658]
[1744376688817,5.78838726,1555.5,1555.4,8.55408]
[1744376689425,5.78838726,1555.5,1555.4,7.2675]
[1744376689729,1.28675,1555.2,1555.1,4.53896]
[1744376689919,1.62819147,1555.2,1555.1,11.83816]
[1744376690424,1.62817913,1555.2,1555.1,11.83816]
[1744376690827,0.34142913,1555.2,1555.0,0.00963205]
[1744376691128,5.34275913,1555.1,1555.0,1.29649205]
[1744376691434,5.34275913,1555.1,1555.0,4.96529205]
[1744376692225,5.34260547,1555.1,1555.0,4.96529205]
[1744376694220,3.362,1555.3,1555.2,1.28675]
[1744376694425,1.28678,1555.2,1555.1,11.81725]
[1744376694728,7.75094428,1555.3,1555.1,11.81725]
[1744376694729,4.0476,1555.3,1555.2,1.28675]
[1744376695027,0.34136173,1555.3,1555.2,8.47875]
[1744376695227,1.62803173,1555.3,1555.2,8.47875]
[1744376695929,1.62811668,1555.3,1555.2,8.47875]
[1744376696228,0.34144668,1555.3,1555.2,8.47875]
[1744376696422,1.62811668,1555.3,1555.2,8.47875]
[1744376697625,0.34144668,1555.3,1555.2,8.47875]
[1744376697824,6.55991,1555.5,1555.4,1.28658]
[1744376697825,1.28657,1555.5,1555.4,1.28658]
[1744376698025,1.62816661,1555.5,1555.4,1.28658]
[1744376698223,5.38886661,1555.5,1555.4,1.28658]
[1744376698423,1.28658,1555.4,1555.3,10.37668]
[1744376698623,1.62817661,1555.4,1555.3,10.37668]
[1744376699118,0.34159661,1555.4,1555.3,10.37668]
[1744376699323,1.62817661,1555.4,1555.3,10.37668]
[1744376699631,1.62828764,1555.4,1555.3,6.57858]
[1744376700028,0.34170764,1555.4,1555.3,10.63798]
[1744376700528,1.62828764,1555.4,1555.3,6.57858]
[1744376700734,1.28683,1555.1,1555.0,0.00963205]
[1744376701037,1.62853764,1555.1,1555.0,0.00963205]
[1744376701328,16.87893764,1555.1,1555.0,0.00963205]
[1744376701531,1.28708,1554.8,1554.7,15.1229835]
[1744376701729,1.62878764,1554.8,1554.7,15.1229835]
[1744376701924,6.62878764,1554.8,1554.7,15.1229835]
[1744376702129,9.83658764,1554.8,1554.7,15.1229835]
[1744376702725,8.47848148,1554.8,1554.7,15.1229835]
[1744376702925,8.47848148,1554.8,1554.7,16.4101435]
[1744376703129,8.47848148,1554.8,1554.7,20.2311435]
[1744376703632,4.00560148,1554.8,1554.7,20.2311435]
[1744376703827,0.34130148,1554.8,1554.7,20.2311435]
[1744376704129,0.00963205,1554.9,1554.8,1.28708]
[1744376704426,0.35095562,1554.9,1554.8,5.10808]
[1744376706736,5.32905562,1554.9,1554.8,3.821]
[1744376707036,5.32905562,1554.9,1554.6,6.37293205]
[1744376707037,4.04205562,1554.9,1554.7,1.28715]
[1744376707227,8.72776357,1554.8,1554.7,1.28715]
[1744376707423,7.0993,1554.8,1554.7,1.28715]
[1744376707625,0.00963205,1554.9,1554.8,1.28708]
[1744376707933,0.00963205,1554.9,1554.8,9.77788]
[1744376708129,0.00963205,1554.9,1554.8,14.77788]
[1744376708334,0.00963205,1554.9,1554.8,9.77788]
[1744376708534,1.29663205,1554.9,1554.8,1.28708]
[1744376708928,1.28708,1554.8,1554.7,5.11279]
[1744376709131,3.6606,1554.8,1554.7,5.11286]
[1744376709336,1.28708,1554.8,1554.7,3.8257]
[1744376709636,4.95730205,1554.9,1554.8,1.28708]
[1744376709830,5.29863765,1554.9,1554.8,1.28708]
[1744376710031,4.01157038,1554.9,1554.8,4.49488]
[1744376710230,3.67023205,1554.9,1554.8,4.49488]
[1744376710532,5.29853976,1554.9,1554.8,1.28708]
[1744376710740,0.35093976,1554.9,1554.8,4.49488]
[1744376710929,0.00963205,1554.9,1554.8,4.49488]
[1744376711238,0.00963205,1554.9,1554.8,1.28708]
[1744376711434,1.29663205,1554.9,1554.8,1.28708]
[1744376711737,5.29856129,1554.9,1554.8,1.28708]
[1744376711927,4.01156129,1554.9,1554.8,1.28708]
[1744376712125,0.00963205,1554.9,1554.8,1.28708]
[1744376712339,1.29663205,1554.9,1554.8,5.16928]
[1744376712638,1.63792184,1554.9,1554.8,5.16928]
[1744376713039,1.29663205,1554.9,1554.8,5.16928]
[1744376713241,0.00963205,1554.9,1554.8,5.16928]
[1744376713441,0.35096888,1554.9,1554.8,5.16928]
[1744376713639,0.35096318,1554.9,1554.8,5.16928]
[1744376713941,0.00963205,1554.9,1554.8,5.16928]
[1744376716838,0.00963205,1554.9,1554.8,10.16928]
[1744376717139,0.00963205,1554.9,1554.8,10.6932741]
[1744376717341,0.00963205,1554.9,1554.8,10.16928]
[1744376717643,0.00963205,1554.9,1554.8,11.57008]
[1744376717938,0.00963205,1554.9,1554.8,15.30498]
[1744376720235,0.00963205,1554.9,1554.8,10.30498]
[1744376725246,2.05e-06,1554.9,1554.8,15.30498]
[1744376725640,2.05e-06,1554.9,1554.8,25.96498]
[1744376725846,7.50254931,1555.5,1555.4,1.28658]
[1744376726139,7.84407988,1555.5,1555.4,9.77738]
[1744376726345,7.50254931,1555.5,1555.4,20.08038]
[1744376729046,0.00963205,1555.6,1555.5,1.2865]
[1744376729245,0.00963205,1555.6,1555.5,5.2447]
[1744376729651,3.95033205,1555.6,1555.5,1.2865]
[1744376730143,3.95033205,1555.6,1555.5,5.2447]
[1744376730851,0.00963205,1555.6,1555.5,5.2447]
[1744376731743,2.05e-06,1555.6,1555.5,5.2447]
[1744376732150,2.05e-06,1555.6,1555.5,5.72151978]
[1744376732551,2.05e-06,1555.6,1555.5,5.2447]
[1744376733041,2.05e-06,1555.6,1555.5,10.2447]
[1744376736653,2.05e-06,1555.6,1555.5,10.71626251]
[1744376738261,2.05e-06,1555.6,1555.5,30.3144853]
[1744376739253,2.05e-06,1555.6,1555.5,25.3144853]
[1744376741762,2.05e-06,1555.6,1555.5,5.71626251]
[1744376741957,1.28581,1556.4,1555.8,6.43111]
[1744376742162,3.9217,1556.1,1556.0,1.28609]
[1744376742361,3.2946,1556.3,1556.2,1.28592]
[1744376742656,3.2946,1556.3,1556.2,9.76472]
[1744376742863,3.9217,1556.4,1556.3,1.28584]
[1744376744061,3.9217,1556.4,1556.3,5.10244]
[1744376744264,3.9217,1556.4,1556.3,1.28584]
[1744376745662,0.00963205,1556.5,1556.4,1.28576]
[1744376745963,6.55863205,1556.5,1556.4,4.49356]
[1744376747158,7.84430205,1556.5,1556.4,4.49356]
[1744376747358,6.55863205,1556.5,1556.4,4.49356]
[1744376747763,10.32683205,1556.5,1556.4,4.49356]
[1744376747963,11.61250205,1556.5,1556.4,1.28576]
[1744376748365,11.61250205,1556.5,1556.4,4.49356]
[1744376748555,3.77783205,1556.5,1556.4,4.49356]
[1744376748758,1.52067614,1556.7,1556.6,1.28559]
[1744376748960,4.49291,1557.2,1557.1,1.28518]
[1744376749161,3.53497927,1557.2,1557.1,1.28518]
[1744376749361,5.0,1557.2,1557.1,1.28518]
[1744376749564,8.2078,1557.2,1557.0,1.28519]
[1744376749769,1.28517,1557.2,1557.0,1.28519]
[1744376749960,1.29467205,1557.3,1557.2,1.2851]
[1744376750160,1.63482064,1557.3,1557.2,1.2851]
[1744376750365,6.63482064,1557.3,1557.2,1.2851]
[1744376750667,6.29467205,1557.3,1557.2,1.2851]
[1744376750871,6.29464205,1557.3,1557.2,1.2851]
[1744376751262,5.00963205,1557.3,1557.2,1.2851]
[1744376752559,0.00963205,1557.3,1557.2,1.2851]
[1744376754371,1.2847,1557.7,1557.6,1.28471]
[1744376754768,6.2847,1557.7,1557.6,1.28471]
[1744376755167,1.2848,1557.6,1557.5,1.2848]
[1744376755371,1.28485,1557.5,1557.4,5.269]
[1744376755584,1.28485,1557.5,1557.4,1.28493]
[1744376755773,6.28485,1557.5,1557.4,1.28493]
[1744376756270,10.35455,1557.5,1557.4,1.28493]
[1744376756475,1.28499,1557.4,1557.3,1.28499]
[1744376756767,7.5293,1557.4,1557.3,1.27193921]
[1744376756970,4.0697,1557.4,1557.3,1.27193921]
[1744376758171,4.0697,1557.4,1557.3,4.47973921]
[1744376761572,4.0697,1557.4,1557.3,1.27193921]
[1744376762376,4.0697,1557.4,1557.3,4.47973921]
[1744376762972,3.5224,1557.6,1557.5,1.28485]
[1744376763163,3.50934921,1557.6,1557.5,4.49265]
[1744376763561,7.35524921,1557.6,1557.5,4.49265]
[1744376764675,3.8459,1557.6,1557.5,4.49265]
[1744376764868,0.00627647,1557.8,1557.7,1.28468]
[1744376765068,0.00627647,1557.8,1557.7,9.74848]
[1744376765374,6.47e-06,1557.8,1557.7,9.74848]
[1744376766274,6.47e-06,1557.8,1557.7,14.74848]
[1744376766469,3.775,1558.2,1558.1,1.28435]
[1744376766673,3.775,1558.2,1558.1,9.74815]
[1744376767870,4.49189,1558.5,1558.4,1.28411]
[1744376768071,6.5923,1558.5,1558.4,1.28411]
[1744376768271,11.5923,1558.5,1558.4,1.28411]
[1744376769074,7.1244,1558.5,1558.4,1.28411]
[1744376769280,3.7399,1558.5,1558.4,1.28411]
[1744376769576,7.50254931,1558.6,1558.5,1.28402]
[1744376769783,7.50254931,1558.6,1558.5,9.74782]
[1744376769980,6.73e-06,1558.6,1558.5,13.54422]
[1744376770278,21.80766669,1559.1,1558.5,13.54422]
[1744376770279,3.8444,1559.0,1558.9,1.2837]
[1744376770586,3.8444,1559.0,1558.9,4.4915]
[1744376771078,1.2837,1558.9,1558.8,6.54734205]
[1744376771273,1.2837,1558.9,1558.8,1.29334205]
[1744376771484,10.1281,1558.9,1558.8,0.00963205]
[1744376771682,3.8444,1558.9,1558.8,0.00963205]
[1744376771872,3.8444,1558.9,1558.8,1.29341205]
[1744376772076,5.1281,1558.9,1558.8,1.29341205]
[1744376772276,3.8444,1558.9,1558.8,1.29341205]
[1744376773182,3.4744,1559.1,1559.0,1.28361]
[1744376773489,4.96336193,1559.3,1559.2,1.28345]
[1744376773676,1.28345,1559.2,1559.1,4.99426]
[1744376773876,1.28345,1559.2,1558.8,6.46649205]
[1744376773877,3.9682,1559.2,1558.8,13.18759205]
[1744376774176,3.9682,1559.2,1559.1,1.28353]
[1744376774379,4.96336193,1559.3,1559.2,1.28345]
[1744376774574,4.96336193,1559.3,1559.1,1.28346]
[1744376774775,3.9682,1559.2,1559.1,1.28353]
[1744376774979,3.9682,1559.2,1559.1,4.99433]
[1744376775184,4.96336193,1559.3,1559.2,1.28345]
[1744376775384,8.93156193,1559.3,1559.2,1.28345]
[1744376775589,8.93156193,1559.3,1559.0,6.41668]
[1744376775785,6.24674193,1559.3,1559.2,1.28345]
[1744376775987,1.28338,1559.3,1559.2,1.28345]
[1744376776182,3.2078,1559.5,1559.1,3.2088]
[1744376776380,4.49104,1559.5,1559.4,1.28328]
[1744376776582,1.28324,1559.5,1559.4,1.28328]
[1744376776985,1.28331,1559.4,1559.3,1.2833]
[1744376777581,1.28345,1559.2,1559.1,1.28347]
[1744376777880,1.28341,1559.3,1559.2,1.2834]
[1744376780183,1.28334,1559.4,1559.3,1.28331]
[1744376780886,6.28334,1559.4,1559.3,1.28331]
[1744376781481,1.28327,1559.5,1559.4,1.28328]
[1744376782192,1.28327,1559.5,1559.3,4.2032]
[1744376782193,1.28337,1559.3,1559.2,4.49116]
[1744376782588,1.28326,1559.5,1559.4,1.28321]
[1744376783891,1.28328,1559.4,1559.3,5.4206]
[1744376784390,1.28328,1559.4,1559.3,1.2833]
[1744376785086,1.28337,1559.3,1559.2,1.28341]
[1744376786092,8.2078,1559.3,1558.9,1.28365]
[1744376786291,1.28361,1559.0,1558.9,1.28365]
[1744376786895,1.2837,1558.9,1558.8,0.00963205]
[1744376787894,1.2837,1558.9,1558.8,1.29341205]
[1744376788698,7.2137,1559.2,1558.8,6.42686205]
[1744376788993,1.28361,1559.1,1558.9,4.15]
[1744376789189,10.42234,1559.2,1558.9,5.43363]
[1744376789393,1.28359,1559.1,1559.0,1.28361]
[1744376789593,1.28359,1559.1,1559.0,9.01631]
[1744376789789,7.2137,1559.2,1559.1,1.28353]
[1744376789995,3.2989,1559.4,1559.1,12.60979]
[1744376790295,1.28332,1559.4,1559.3,1.28337]
[1744376790691,1.28332,1559.4,1559.3,5.43337]
[1744376790887,1.28332,1559.4,1559.3,4.15]
[1744376791193,1.28336,1559.4,1559.3,1.28331]
[1744376791494,1.28326,1559.5,1559.4,1.28321]
[1744376792195,1.28326,1559.5,1559.4,4.49101]
[1744376792996,1.28315,1559.6,1559.5,1.28313]
[1744376793202,1.28312,1559.6,1559.5,5.2982]
[1744376793393,1.28312,1559.6,1559.3,1.28331]
[1744376793394,1.28333,1559.4,1559.3,1.28331]
[1744376793890,1.28319,1559.6,1559.5,1.28319]
[1744376794085,1.28304,1559.7,1559.6,1.28312]
[1744376794288,1.28304,1559.7,1559.6,5.29804]
[1744376794490,1.62391485,1559.7,1559.6,7.333]
[1744376794695,1.62392307,1559.7,1559.6,8.61612]
[1744376794890,1.62384519,1559.7,1559.6,8.61612]
[1744376795096,5.13221,1559.8,1559.7,1.28304]
[1744376795296,5.4733086,1559.8,1559.7,5.14214]
[1744376795489,1.62411252,1559.8,1559.7,5.14214]
[1744376795702,1.28292,1559.9,1559.8,1.28295]
[1744376795896,1.28287,1559.9,1559.8,5.14199]
[1744376796403,0.34141662,1559.9,1559.8,5.14205]
[1744376796602,3.8492,1560.0,1559.9,1.28287]
[1744376796803,1.28277,1560.1,1560.0,1.28279]
[1744376797105,1.28279,1560.0,1559.9,12.3089]
[1744376797304,1.28279,1560.0,1559.9,10.38397]
[1744376797595,1.28295,1559.8,1559.7,7.85748]
[1744376797801,1.62424896,1559.8,1559.7,7.2221]
[1744376798000,1.62423341,1559.8,1559.7,3.8554]
[1744376798201,1.28304,1559.7,1559.6,8.56863205]
[1744376798402,5.51611202,1559.7,1559.6,8.56863205]
[1744376798605,5.51611202,1559.7,1559.6,13.70715205]
[1744376798994,5.51611202,1559.7,1559.6,12.42403205]
[1744376799205,1.62431202,1559.7,1559.6,13.70715205]
[1744376800105,1.62431202,1559.7,1559.6,12.42403205]
[1744376800307,1.62431202,1559.7,1559.6,13.70715205]
[1744376800820,1.62431202,1559.7,1559.6,12.42403205]
[1744376801118,1.62431202,1559.7,1559.6,13.70715205]
[1744376801520,1.62431202,1559.7,1559.6,12.42403205]
[1744376802817,0.34127202,1559.7,1559.6,13.70715205]
[1744376803018,1.28282,1560.0,1559.9,1.28287]
[1744376803219,1.62489659,1560.0,1559.9,1.28287]
[1744376803416,1.28287,1559.9,1559.8,4.4907]
[1744376803615,1.62494659,1559.9,1559.8,8.5577]